fUST/lending_fUST_20250820
["ID","MTS","AMOUNT","RATE_DAILY","PERIOD"]
[380325034,1755678645911,-483.66145619,0.00020073,2]
[380325036,1755678645920,-485.02313454,0.00020073,2]
[380325038,1755678645930,-494.81218746,0.00020073,2]
[380325040,1755678645939,-480.0,0.00020073,2]
[380325042,1755678645949,-485.2600454,0.00020073,2]
[380325044,1755678645958,-480.0,0.00020073,2]
[380325046,1755678645968,-480.0,0.00020073,2]
[380325048,1755678645977,-482.014804,0.00020073,2]
[380325050,1755678645987,-481.97233253,0.00020073,2]
[380325052,1755678645996,-227.18504807,0.00020073,2]
[380325054,1755678646005,-480.0,0.00020073,2]
[380325056,1755678646015,-231.35298868,0.00020073,2]
[380325058,1755678646024,-203.5122005,0.00020073,2]
[380325060,1755678646033,-480.0,0.00020073,2]
[380325062,1755678646042,-506.49646671,0.00020095,2]
[380325064,1755678646052,-729.0,0.00020095,2]
[380325066,1755678646061,-4269.39476801,0.00020188,2]
[380325068,1755678646071,-300.0,0.00020193,20]
[380325070,1755678646080,-300.0,0.00020193,20]
[380325072,1755678646090,-300.0,0.00020193,20]
[380325074,1755678646099,-300.0,0.00020193,20]
[380325076,1755678646109,-300.0,0.00020193,20]
[380325079,1755678646118,-300.0,0.00020193,20]
[380325082,1755678646129,-300.0,0.00020193,20]
[380325084,1755678646140,-300.0,0.00020193,20]
[380325086,1755678646150,-300.0,0.00020193,20]
[380325088,1755678646160,-300.0,0.00020193,20]
[380325090,1755678646170,-300.0,0.00020193,20]
[380325092,1755678646179,-300.0,0.00020193,20]
[380325094,1755678646189,-300.0,0.00020193,20]
[380325096,1755678646198,-300.0,0.00020193,20]
[380325098,1755678646208,-300.0,0.00020193,20]
[380325100,1755678646218,-151.0,0.00020193,2]
[380325102,1755678646229,-600.0,0.00020194,20]
[380325104,1755678646238,-363.2835905,0.00020211,2]
[380325106,1755678646248,-1451.68122765,0.00020211,2]
[380325108,1755678646258,-151.0,0.00020233,2]
[380325110,1755678646268,-151.0,0.00020233,2]
[380325112,1755678646277,-151.0,0.00020233,2]
[380325113,1755678646286,-151.0,0.00020233,2]
[380325115,1755678646297,-200.351306,0.00020233,2]
[380325118,1755678646307,-200.351306,0.00020233,2]
[380325120,1755678646316,-200.351306,0.00020233,2]
[380325122,1755678646326,-200.351306,0.00020233,2]
[380325123,1755678646335,-151.0,0.00020233,2]
[380325125,1755678646345,-151.0,0.00020233,2]
[380325128,1755678646355,-151.0,0.00020233,2]
[380325129,1755678646364,-288.988272,0.00020233,2]
[380325132,1755678646374,-151.0,0.00020233,2]
[380325134,1755678646383,-151.0,0.00020233,2]
[380325136,1755678646393,-259.489383,0.00020233,2]
[380325137,1755678646403,-151.0,0.00020233,2]
[380325139,1755678646416,-151.0,0.00020233,2]
[380325141,1755678646426,-152.778142,0.00020233,2]
[380325143,1755678646435,-151.0,0.00020233,2]
[380325145,1755678646444,-158.705288,0.00020233,2]
[380325147,1755678646454,-158.705288,0.00020233,2]
[380325149,1755678646463,-158.705288,0.00020233,2]
[380325151,1755678646473,-158.705288,0.00020233,2]
[380325153,1755678646482,-160.0,0.00020233,2]
[380325155,1755678646492,-4902.6756277,0.00020258,2]
[380325157,1755678646501,-153.344798,0.00020258,2]
[380325159,1755678646510,-952.16,0.00020273,2]
[380325161,1755678646519,-480.0,0.00020273,2]
[380325163,1755678646529,-626.41,0.00020273,2]
[380325165,1755678646538,-748.41,0.00020273,2]
[380325167,1755678646548,-997.44,0.00020273,2]
[380325169,1755678646558,-480.0,0.00020273,2]
[380325171,1755678646567,-480.0,0.00020273,2]
[380325173,1755678646577,-383.15,0.00020273,2]
[380325175,1755678646587,-480.0,0.00020273,2]
[380325177,1755678646596,-480.0,0.00020273,2]
[380325179,1755678646606,-480.0,0.00020273,2]
[380325181,1755678646615,-480.0,0.00020273,2]
[380325183,1755678646624,-480.0,0.00020273,2]
[380325185,1755678646634,-480.0,0.00020273,2]
[380325187,1755678646643,-505.69879824,0.00020321,2]
[380325189,1755678646653,-503.44880882,0.00020321,2]
[380325191,1755678646663,-1010.50378099,0.00020321,2]
[380325193,1755678646672,-500.0,0.00020321,2]
[380325195,1755678646681,-1001.11504192,0.00020321,2]
[380325197,1755678646690,-500.74460077,0.00020321,2]
[380325199,1755678646699,-502.98310304,0.00020321,2]
[380325201,1755678646709,-1001.70312654,0.00020321,2]
[380325203,1755678646718,-501.57757101,0.00020321,2]
[380325205,1755678646727,-501.74535346,0.00020321,2]
[380325207,1755678646736,-851.47899447,0.00020321,2]
[380325209,1755678646745,-733.23989062,0.00020321,2]
[380325211,1755678646754,-503.08431617,0.00020321,2]
[380325213,1755678646763,-1000.0,0.00020321,2]
[380325215,1755678646772,-501.65801935,0.00020321,2]
[380325217,1755678646782,-500.0,0.00020321,2]
[380325220,1755678646793,-500.2436032,0.00020321,2]
[380325222,1755678646807,-543.19407658,0.00020321,2]
[380325224,1755678646821,-501.33334754,0.00020321,2]
[380325226,1755678646834,-500.82483447,0.00020321,2]
[380325228,1755678646845,-618.31341547,0.00020321,2]
[380325231,1755678646855,-1000.0,0.00020321,2]
[380325233,1755678646868,-500.0,0.00020321,2]
[380325235,1755678646880,-1000.0,0.00020321,2]
[380325238,1755678646892,-1000.92164858,0.00020321,2]
[380325240,1755678646905,-501.07679444,0.00020321,2]
[380325242,1755678646917,-500.0,0.00020321,2]
[380325245,1755678646929,-500.0,0.00020321,2]
[380325247,1755678646942,-500.59199526,0.00020321,2]
[380325249,1755678646955,-500.0,0.00020321,2]
[380325251,1755678646967,-1001.28444271,0.00020321,2]
[380325254,1755678646979,-1000.0,0.00020321,2]
[380325256,1755678646991,-151.0,0.00020321,2]
[380325258,1755678647002,-151.0,0.00020321,2]
[380325260,1755678647015,-177.108803,0.00020321,2]
[380325263,1755678647028,-152.315725,0.00020321,2]
[380325265,1755678647039,-151.0,0.00020321,2]
[380325267,1755678647051,-151.0,0.00020321,2]
[380325269,1755678647062,-366.1037827,0.00020334,2]
[380325271,1755678647073,-151.0,0.00020346,2]
[380325274,1755678647084,-151.4831486,0.00020346,2]
[380325276,1755678647096,-435.88587117,0.00020346,2]
[380325278,1755678647109,-480.0,0.00020346,2]
[380325281,1755678647122,-200.5,0.00020346,2]
[380325283,1755678647134,-1387.66,0.00020358,3]
[380325285,1755678647146,-925.12,0.00020358,3]
[380325288,1755678647160,-327.38,0.00020358,3]
[380325290,1755678647173,-462.56,0.0002036,3]
[380325292,1755678647185,-729.0,0.00020369,2]
[380325294,1755678647195,-179.71246006,0.000204,2]
[380325296,1755678647205,-952.16,0.00020547,2]
[380325299,1755678647217,-480.0,0.00020547,2]
[380325301,1755678647229,-626.41,0.00020547,2]
[380325303,1755678647242,-748.41,0.00020547,2]
[380325306,1755678647256,-997.44,0.00020547,2]
[380325308,1755678647268,-480.0,0.00020547,2]
[380325310,1755678647279,-480.0,0.00020547,2]
[380325312,1755678647290,-480.0,0.00020547,2]
[380325315,1755678647302,-480.0,0.00020547,2]
[380325317,1755678647314,-480.0,0.00020547,2]
[380325319,1755678647325,-480.0,0.00020547,2]
[380325321,1755678647336,-480.0,0.00020547,2]
[380325323,1755678647347,-480.0,0.00020547,2]
[380325326,1755678647357,-151.0,0.00020603,2]
[380325328,1755678647369,-151.633833,0.00020603,2]
[380325330,1755678647380,-151.0,0.00020603,2]
[380325331,1755678647391,-1680.0,0.00020603,2]
[380325333,1755678647402,-420.0,0.00020603,2]
[380325335,1755678647416,-4902.6756277,0.00020616,2]
[380325336,1755678647427,-2000.0,0.00020616,2]
[380325338,1755678647437,-480.0,0.0002062,2]
[380325339,1755678647450,-151.0,0.0002062,2]
[380325341,1755678647461,-151.0,0.0002062,2]
[380325343,1755678647471,-151.0,0.0002062,2]
[380325344,1755678647483,-151.0,0.0002062,2]
[380325346,1755678647493,-178.210269,0.00020621,2]
[380325348,1755678647504,-178.210269,0.00020621,2]
[380325349,1755678647515,-178.210269,0.00020621,2]
[380325351,1755678647526,-178.210269,0.00020621,2]
[380325352,1755678647537,-744.03948216,0.00020623,2]
[380325354,1755678647549,-729.0,0.00020643,2]
[380325356,1755678647560,-151.0,0.000207,3]
[380325357,1755678647572,-1680.0,0.00020703,2]
[380325359,1755678647583,-260.0,0.00020781,2]
[380325361,1755678647594,-952.16,0.00020821,2]
[380325362,1755678647605,-480.0,0.00020821,2]
[380325364,1755678647617,-626.41,0.00020821,2]
[380325366,1755678647628,-748.41,0.00020821,2]
[380325367,1755678647640,-997.44,0.00020821,2]
[380325369,1755678647651,-480.0,0.00020821,2]
[380325371,1755678647663,-480.0,0.00020821,2]
[380325373,1755678647674,-480.0,0.00020821,2]
[380325374,1755678647684,-480.0,0.00020821,2]
[380325376,1755678647695,-480.0,0.00020821,2]
[380325378,1755678647707,-480.0,0.00020821,2]
[380325379,1755678647719,-480.0,0.00020821,2]
[380325381,1755678647730,-501.66877216,0.00020868,2]
[380325382,1755678647741,-267.29054172,0.00020868,2]
[380325384,1755678647753,-480.0,0.00020894,2]
[380325385,1755678647764,-729.0,0.00020917,2]
[380325387,1755678647774,-4902.6756277,0.00020974,2]
[380325389,1755678647786,-952.16,0.00021095,2]
[380325390,1755678647796,-480.0,0.00021095,2]
[380325392,1755678647807,-626.41,0.00021095,2]
[380325394,1755678647818,-748.41,0.00021095,2]
[380325395,1755678647828,-997.44,0.00021095,2]
[380325397,1755678647840,-480.0,0.00021095,2]
[380325399,1755678647850,-151.0,0.00021095,2]
[380325400,1755678647861,-480.0,0.00021095,2]
[380325402,1755678647872,-480.0,0.00021095,2]
[380325404,1755678647883,-480.0,0.00021095,2]
[380325405,1755678647894,-241.07700995,0.00021095,2]
[380325407,1755678647906,-480.0,0.00021095,2]
[380325409,1755678647917,-480.0,0.00021095,2]
[380325410,1755678647927,-200.5240547,0.0002115,2]
[380325412,1755678647939,-480.0,0.00021168,2]
[380325414,1755678647950,-729.0,0.00021191,2]
[380325416,1755678647962,-2507.40698154,0.00021209,2]
[380325417,1755678647973,-4269.39476801,0.00021297,2]
[380325419,1755678647985,-360.0,0.00021329,2]
[380325421,1755678647996,-151.0,0.00021331,2]
[380325430,1755678648146,-151.0,0.00021331,2]
[380325433,1755678648166,-151.0,0.00021331,2]
[380325434,1755678648176,-151.0,0.00021331,2]
[380325436,1755678648186,-200.351306,0.00021331,2]
[380325437,1755678648195,-200.351306,0.00021331,2]
[380325439,1755678648205,-200.351306,0.00021331,2]
[380325440,1755678648214,-200.351312,0.00021331,2]
[380325442,1755678648222,-4902.6756277,0.00021331,2]
[380325444,1755678648232,-952.16,0.00021369,2]
[380325445,1755678648241,-626.41,0.00021369,2]
[380325447,1755678648251,-748.41,0.00021369,2]
[380325448,1755678648261,-997.44,0.00021369,2]
[380325450,1755678648270,-480.0,0.00021369,2]
[380325451,1755678648280,-480.0,0.00021369,2]
[380325453,1755678648289,-480.0,0.00021369,2]
[380325454,1755678648298,-480.0,0.00021369,2]
[380325456,1755678648308,-480.0,0.00021369,2]
[380325458,1755678648317,-151.0,0.00021388,2]
[380325459,1755678648327,-151.0,0.00021388,2]
[380325461,1755678648337,-151.0,0.00021388,2]
[380325463,1755678648349,-151.0,0.00021388,2]
[380325464,1755678648359,-151.0,0.00021388,2]
[380325466,1755678648369,-221.691891,0.00021388,2]
[380325467,1755678648378,-159.20595,0.00021388,2]
[380325469,1755678648389,-158.705288,0.00021388,2]
[380325471,1755678648399,-158.705288,0.00021388,2]
[380325472,1755678648411,-158.705288,0.00021388,2]
[380325474,1755678648422,-158.705278,0.00021388,2]
[380325475,1755678648431,-151.0,0.00021416,2]
[380325477,1755678648440,-480.0,0.00021442,2]
[380325478,1755678648450,-729.0,0.00021465,2]
[380325480,1755678648459,-5254.74669744,0.000215,2]
[380325482,1755678648469,-952.16,0.00021643,2]
[380325483,1755678648479,-626.41,0.00021643,2]
[380325485,1755678648489,-748.41,0.00021643,2]
[380325486,1755678648498,-997.44,0.00021643,2]
[380325488,1755678648508,-480.0,0.00021643,2]
[380325489,1755678648518,-480.0,0.00021643,2]
[380325491,1755678648527,-480.0,0.00021643,2]
[380325492,1755678648536,-480.0,0.00021643,2]
[380325494,1755678648547,-480.0,0.00021643,2]
[380325496,1755678648557,-4902.6756277,0.00021689,2]
[380325497,1755678648567,-480.0,0.00021716,2]
[380325499,1755678648577,-729.0,0.00021739,2]
[380325500,1755678648586,-14000.45229651,0.00021768,2]
[380325502,1755678648596,-500.0,0.00021843,2]
[380325504,1755678648606,-460.0,0.00021877,2]
[380325505,1755678648616,-151.0,0.000219,3]
[380325507,1755678648625,-952.16,0.00021917,2]
[380325508,1755678648635,-626.41,0.00021917,2]
[380325510,1755678648645,-748.41,0.00021917,2]
[380325511,1755678648654,-997.44,0.00021917,2]
[380325513,1755678648664,-480.0,0.00021917,2]
[380325514,1755678648673,-480.0,0.00021917,2]
[380325516,1755678648682,-529.61702472,0.00021917,2]
[380325518,1755678648691,-480.0,0.00021917,2]
[380325519,1755678648702,-480.0,0.00021917,2]
[380325521,1755678648711,-355.480965,0.00021918,2]
[380325522,1755678648720,-355.480965,0.00021918,2]
[380325524,1755678648730,-355.480965,0.00021918,2]
[380325525,1755678648739,-355.480965,0.00021918,2]
[380325527,1755678648748,-355.480965,0.00021918,2]
[380325529,1755678648757,-355.480965,0.00021918,2]
[380325530,1755678648766,-355.480965,0.00021918,2]
[380325532,1755678648775,-355.480965,0.00021918,2]
[380325533,1755678648784,-355.480965,0.00021918,2]
[380325535,1755678648793,-355.480965,0.00021918,2]
[380325536,1755678648801,-355.480965,0.00021918,2]
[380325538,1755678648811,-355.480965,0.00021918,2]
[380325539,1755678648820,-355.480965,0.00021918,2]
[380325541,1755678648830,-355.480965,0.00021918,2]
[380325543,1755678648839,-355.480965,0.00021918,2]
[380325544,1755678648849,-355.480965,0.00021918,2]
[380325546,1755678648858,-355.480965,0.00021918,2]
[380325547,1755678648868,-355.480965,0.00021918,2]
[380325549,1755678648878,-355.480965,0.00021918,2]
[380325551,1755678648889,-355.48097272,0.00021918,2]
[380325552,1755678648899,-500.0,0.00021937,2]
[380325554,1755678648908,-500.0,0.00021937,2]
[380325555,1755678648918,-500.0,0.00021938,2]
[380325557,1755678648927,-500.0,0.00021938,2]
[380325558,1755678648937,-480.0,0.0002199,2]
[380325560,1755678648947,-151.0,0.00022,7]
[380325562,1755678648957,-151.0,0.00022,7]
[380325563,1755678648967,-161.303108,0.00022,7]
[380325565,1755678648976,-528.77847288,0.00022,7]
[380325566,1755678648985,-1524.54,0.00022,7]
[380325568,1755678648995,-417.15472785,0.00022,7]
[380325569,1755678649004,-34377.8,0.00022,2]
[380325571,1755678649013,-179.0,0.00022,2]
[380325573,1755678649023,-18617.6,0.00022,7]
[380325574,1755678649033,-12687.94051737,0.00022,7]
[380325576,1755678649042,-6153.46,0.00022,7]
[380325577,1755678649052,-349.62862785,0.00022,7]
[380325579,1755678649061,-375.94359665,0.00022,7]
[380325580,1755678649071,-215.82729805,0.00022,7]
[380325582,1755678649080,-160.0,0.00022,7]
[380325584,1755678649091,-168.0,0.00022,2]
[380325585,1755678649101,-729.0,0.00022013,2]
[380325587,1755678649111,-467.4005541,0.00022029,2]
[380325588,1755678649121,-4902.6756277,0.00022047,2]
[380325590,1755678649130,-210.28,0.000221,2]
[380325592,1755678649141,-952.16,0.00022191,2]
[380325593,1755678649150,-626.41,0.00022191,2]
[380325595,1755678649159,-748.41,0.00022191,2]
[380325596,1755678649169,-997.44,0.00022191,2]
[380325598,1755678649178,-480.0,0.00022191,2]
[380325599,1755678649187,-480.0,0.00022191,2]
[380325601,1755678649198,-480.0,0.00022191,2]
[380325602,1755678649206,-168.0,0.00022192,7]
[380325604,1755678649215,-174.63577265,0.000222,69]
[380325606,1755678649226,-174.63577264,0.000222,69]
[380325607,1755678649236,-720.0,0.00022213,20]
[380325609,1755678649245,-151.0,0.00022213,7]
[380325610,1755678649255,-151.0,0.00022213,7]
[380325612,1755678649265,-178.210269,0.00022249,7]
[380325613,1755678649275,-178.210269,0.00022249,7]
[380325615,1755678649285,-178.210269,0.00022249,7]
[380325617,1755678649294,-178.210269,0.00022249,7]
[380325618,1755678649304,-227.92,0.00022264,2]
[380325620,1755678649313,-151.0,0.00022265,7]
[380325621,1755678649322,-151.0,0.00022265,7]
[380325623,1755678649332,-729.0,0.00022287,2]
[380325624,1755678649341,-2507.40698154,0.00022374,2]
[380325626,1755678649351,-1010.99433872,0.00022391,2]
[380325628,1755678649360,-272.0,0.00022404,2]
[380325629,1755678649370,-4902.6756277,0.00022405,2]
[380325631,1755678649380,-4269.39476801,0.00022407,2]
[380325632,1755678649391,-560.0,0.00022425,2]
[380325634,1755678649401,-151.0,0.00022436,7]
[380325636,1755678649413,-417.15472785,0.00022437,2]
[380325637,1755678649422,-844.05985274,0.00022437,2]
[380325639,1755678649432,-216.9170744,0.00022437,2]
[380325640,1755678649442,-160.0,0.00022437,2]
[380325642,1755678649451,-232.24568399,0.00022437,2]
[380325643,1755678649461,-375.94359665,0.00022437,2]
[380325645,1755678649470,-160.0,0.00022437,2]
[380325647,1755678649479,-160.0,0.00022437,2]
[380325648,1755678649490,-215.82729805,0.00022437,2]
[380325650,1755678649499,-160.0,0.00022437,2]
[380325651,1755678649508,-528.77847288,0.00022437,2]
[380325653,1755678649517,-160.0,0.00022437,2]
[380325654,1755678649526,-160.0,0.00022437,2]
[380325656,1755678649535,-160.0,0.00022437,2]
[380325657,1755678649543,-160.0,0.00022437,2]
[380325659,1755678649552,-291.63725879,0.00022451,2]
[380325661,1755678649562,-2351.0,0.00022459,2]
[380325662,1755678649571,-172.0,0.00022459,2]
[380325664,1755678649580,-952.16,0.00022465,2]
[380325665,1755678649589,-626.41,0.00022465,2]
[380325667,1755678649599,-748.41,0.00022465,2]
[380325669,1755678649608,-997.44,0.00022465,2]
[380325670,1755678649617,-480.0,0.00022465,2]
[380325672,1755678649626,-480.0,0.00022465,2]
[380325673,1755678649635,-492.22485948,0.00022465,2]
[380325675,1755678649643,-1000.0,0.00022485,2]
[380325676,1755678649653,-1001.69273734,0.00022485,2]
[380325678,1755678649663,-500.0,0.00022485,2]
[380325680,1755678649672,-1000.0,0.00022485,2]
[380325681,1755678649682,-729.0,0.00022561,2]
[380325683,1755678649691,-1914.0,0.00022678,2]
[380325685,1755678649700,-700.0,0.00022712,2]
[380325686,1755678649709,-151.0,0.00022712,7]
[380325688,1755678649719,-952.16,0.00022739,2]
[380325689,1755678649728,-626.41,0.00022739,2]
[380325691,1755678649738,-748.41,0.00022739,2]
[380325693,1755678649747,-997.44,0.00022739,2]
[380325694,1755678649756,-480.0,0.00022739,2]
[380325696,1755678649765,-480.0,0.00022739,2]
[380325697,1755678649774,-4902.6756277,0.00022763,2]
[380325699,1755678649784,-729.0,0.00022835,2]
[380325701,1755678649793,-174.63577264,0.0002294,72]
[380325702,1755678649803,-660.0,0.00022973,2]
[380325704,1755678649812,-1000.0040604,0.00023,2]
[380325705,1755678649821,-160.0,0.00023,2]
[380325707,1755678649830,-952.16,0.00023013,2]
[380325708,1755678649839,-626.41,0.00023013,2]
[380325710,1755678649848,-748.41,0.00023013,2]
[380325712,1755678649858,-997.44,0.00023013,2]
[380325713,1755678649867,-480.0,0.00023013,2]
[380325715,1755678649876,-480.0,0.00023013,2]
[380325717,1755678649886,-168.0,0.00023014,7]
[380325718,1755678649896,-1500.0,0.00023033,2]
[380325720,1755678649905,-1335.44292313,0.00023033,2]
[380325721,1755678649914,-1524.54,0.000231,7]
[380325723,1755678649924,-34377.8,0.000231,2]
[380325725,1755678649933,-18617.6,0.000231,7]
[380325726,1755678649943,-6153.46,0.000231,7]
[380325728,1755678649952,-375.94359665,0.000231,7]
[380325730,1755678649962,-215.82729805,0.000231,7]
[380325731,1755678649972,-160.0,0.000231,7]
[380325733,1755678649981,-729.0,0.00023109,2]
[380325734,1755678649990,-1000.0,0.00023119,2]
[380325736,1755678650000,-1052.07550186,0.00023119,2]
[380325738,1755678650010,-151.0,0.0002312,7]
[380325739,1755678650020,-4902.6756277,0.00023121,2]
[380325741,1755678650029,-158.628671,0.00023182,2]
[380325742,1755678650039,-939.20640578,0.00023197,2]
[380325744,1755678650048,-151.0,0.00023199,7]
[380325745,1755678650056,-178.210269,0.00023199,7]
[380325747,1755678650066,-178.210269,0.00023199,7]
[380325749,1755678650075,-178.210269,0.00023199,7]
[380325750,1755678650084,-178.210264,0.00023199,7]
[380325752,1755678650093,-417.15472785,0.000232,7]
[380325753,1755678650103,-12687.94051737,0.000232,7]
[380325755,1755678650112,-179.0,0.00023213,2]
[380325757,1755678650121,-432.2343682,0.0002326,2]
[380325758,1755678650132,-179.0,0.00023284,2]
[380325760,1755678650143,-952.16,0.00023287,2]
[380325761,1755678650153,-626.41,0.00023287,2]
[380325763,1755678650163,-748.41,0.00023287,2]
[380325765,1755678650173,-997.44,0.00023287,2]
[380325766,1755678650183,-480.0,0.00023287,2]
[380325768,1755678650192,-606.1,0.00023287,2]
[380325770,1755678650202,-271.790043,0.00023288,2]
[380325771,1755678650211,-179.0,0.00023304,2]
[380325773,1755678650220,-179.0,0.00023312,2]
[380325774,1755678650229,-179.0,0.00023344,2]
[380325776,1755678650239,-179.0,0.00023354,2]
[380325777,1755678650249,-729.0,0.00023383,2]
[380325779,1755678650258,-179.0,0.00023388,2]
[380325780,1755678650267,-151.0,0.00023419,2]
[380325782,1755678650277,-179.0,0.00023423,2]
[380325784,1755678650286,-179.0,0.0002343,2]
[380325785,1755678650295,-535.0,0.00023431,2]
[380325787,1755678650307,-4902.6756277,0.00023478,2]
[380325788,1755678650317,-1000.0,0.000235,2]
[380325790,1755678650327,-4269.39476801,0.00023516,2]
[380325792,1755678650337,-760.0,0.00023521,2]
[380325793,1755678650347,-2507.40698154,0.0002354,2]
[380325795,1755678650356,-952.16,0.00023561,2]
[380325796,1755678650365,-626.41,0.00023561,2]
[380325798,1755678650375,-748.41,0.00023561,2]
[380325800,1755678650384,-997.44,0.00023561,2]
[380325801,1755678650394,-480.0,0.00023561,2]
[380325803,1755678650403,-179.0,0.0002357,2]
[380325804,1755678650415,-179.0,0.00023576,2]
[380325806,1755678650425,-2000.0,0.00023581,2]
[380325808,1755678650434,-131524.54537638,0.000236,2]
[380325809,1755678650443,-179.0,0.00023617,2]
[380325811,1755678650453,-179.0,0.00023643,2]
[380325812,1755678650463,-729.0,0.00023657,2]
[380325814,1755678650472,-179.0,0.00023662,2]
[380325816,1755678650480,-151.0,0.000237,7]
[380325817,1755678650491,-179.0,0.00023728,2]
[380325819,1755678650501,-1000.0,0.00023768,2]
[380325820,1755678650510,-1000.0,0.00023768,2]
[380325822,1755678650519,-154.50207451,0.00023768,2]
[380325824,1755678650528,-151.0,0.00023768,2]
[380325825,1755678650537,-151.0,0.00023768,2]
[380325827,1755678650546,-151.0,0.00023768,2]
[380325828,1755678650555,-151.0,0.00023768,2]
[380325830,1755678650564,-151.0,0.00023768,2]
[380325832,1755678650574,-293.95721229,0.00023768,2]
[380325833,1755678650583,-500.0,0.00023773,2]
[380325835,1755678650591,-526.94486111,0.00023773,2]
[380325836,1755678650601,-151.0,0.00023798,7]
[380325838,1755678650610,-300765.41228908,0.00023799,2]
[380325842,1755678650821,-44045.63971639,0.00023799,2]
[380325843,1755678650904,-151.0,0.00019,2]
[380325844,1755678650914,-480.0,0.00019178,2]
[380325845,1755678650923,-151.0,0.00019451,2]
[380325846,1755678650933,-480.0,0.00019452,2]
[380325847,1755678650941,-101.66362772,0.00023799,2]
[380325848,1755678650952,-11427.56843729,0.00023799,2]
[380325849,1755678650971,-151.0,0.00019,2]
[380325850,1755678650981,-3663.72952978,0.00023799,2]
[380325851,1755678650991,-9995.98639974,0.00023799,2]
[380325852,1755678651001,-153.823552,0.00023799,7]
[380325853,1755678651010,-151.0,0.00023799,7]
[380325854,1755678651019,-1161.46295991,0.00023799,2]
[380325855,1755678651031,-1332.44431901,0.00023799,2]
[380326275,1755678724964,1038.1813823,0.00018436,2]
[380326276,1755678745991,163.656963,0.00013699,2]
[380326277,1755678750032,940.27761813,0.00018896,2]
[380326278,1755678962343,-241.69034967,0.00024,60]
[380326279,1755678962375,-5000.0,0.0002553,30]
[380326280,1755678962399,-5000.0,0.0002553,30]
[380326281,1755678962424,-5000.0,0.0002553,30]
[380326282,1755678962448,-5000.0,0.0002553,30]
[380326283,1755678962472,-5000.0,0.0002553,30]
[380326284,1755678962495,-5000.0,0.0002553,30]
[380326285,1755678962523,-455.45,0.0002553,30]
[380326286,1755678962547,-12687.94051737,0.000256,30]
[380326287,1755678962572,-216.9170744,0.000257,30]
[380326288,1755678962603,-417.15472785,0.000257,30]
[380326289,1755678962646,-375.94359665,0.000257,30]
[380326290,1755678962694,-215.82729805,0.000257,30]
[380326291,1755678962742,-232.24568399,0.000257,30]
[380326292,1755678962780,-844.05985274,0.000257,30]
[380326293,1755678962805,-150.0,0.000258,30]
[380326294,1755678962830,-160.0,0.00026,30]
[380326295,1755678962859,-706.76721078,0.00027,45]
[380326296,1755678962883,-8050.0,0.00027,60]
[380326297,1755678962909,-207.97,0.00027024,60]
[380326298,1755678962936,-1000.8,0.0002705,60]
[380326299,1755678963073,-4000.0,0.00027058,60]
[380326300,1755678963115,-10000.0,0.00027134,60]
[380326301,1755678963182,-10334.0,0.00028,30]
[380326302,1755678963211,-417.15472785,0.00028,30]
[380326303,1755678963246,-12687.94051737,0.00028,30]
[380326304,1755678963289,-375.94359665,0.00028,30]
[380326305,1755678963315,-215.82729805,0.00028,30]